[Event "EYCC O18-ch 2024"]
[Site "Prague"]
[Date "2024.08.28"]
[Round "6.17"]
[White "Klimkowski, Jan"]
[Black "Szikszai, Bertalan"]
[Result "1-0"]
[ECO "B95"]
[WhiteElo "2508"]
[BlackElo "2278"]
[Annotator "TA"]
[PlyCount "117"]
[EventDate "2024.08.19"]
[EventType "swiss"]
[EventCountry "CZE"]
[SourceTitle "playchess.com"]
[Source "ChessBase"]
[SourceQuality "1"]
[TimeControl "5400+30"]

{[%evp 16,117,12,-8,28,35,47,39,45,43,27,56,73,81,66,55,56,63,138,93,86,76,81,80,100,80,83,79,127,93,102,87,84,60,96,48,49,47,56,22,58,34,29,31,57,52,192,191,185,191,189,193,202,208,197,171,177,120,112,124,118,131,181,158,153,90,179,173,301,289,281,259,248,254,261,260,260,248,288,243,280,276,287,279,1499,3381,2935,1956,5635,3096,29971,12842,29978,12832,29983,29984,29984,29985,29989,29988,29988,29989,29990,29991]} 1. e4 {[%emt 0:00:02]} c5 {[%emt 0:00:10]} 2. Nf3 {[%emt 0:00:04]} d6 {[%emt 0:00:06]} 3. d4 {[%emt 0:00:03]} cxd4 {[%emt 0:00:05]} 4. Nxd4 {[%emt 0:00:03]} Nf6 {[%emt 0:00:07]} 5. Nc3 {[%emt 0:00:03]} a6 {[%emt 0:00:09]} 6. Bg5 {[%emt 0:00:11]} e6 {[%emt 0:00:21]} 7. Qf3 {[%emt 0:00:22]} Be7 {[%emt 0:01:38]} 8. O-O-O {[%emt 0:00:44]} Qc7 {[%emt 0:09:22]} 9. g4 {[%emt 0:00:51]} Nbd7 {[%emt 0:08:10]} 10. Bd2 h6 {[%emt 0:10:12]} 11. Qh3 {[%emt 0:06:01]} Nc5 {[%emt 0:11:14]} 12. Bg2 $1 {[%emt 0:01:00]} g6 13. f4 {[%emt 0:04:58][%cal Oe4e5] And now e5! would win.} (13. Bxh6 Ng8 14. Qg3 Nxh6 $17) 13... e5 {[%emt 0:13:32][%cal Oc8g4] [#]} 14. Nf5 $1 {[%emt 0:00:00]} gxf5 {[%emt 0:05:31]} 15. exf5 Bxf5 {[%emt 0:01:59]} 16. gxf5 {[%emt 0:00:23]} O-O-O {[%emt 0:05:48]} (16... e4 $1 $14) 17. Nd5 {[%emt 0:07:59]} Nxd5 {[%emt 0:00:15]} 18. Bxd5 {[%emt 0:00:07] f6+ is the strong threat.} Bf6 {[%emt 0:00:36]} 19. Qa3 {[%emt 0:10:08]} Kb8 {[%emt 0:10:52]} 20. Ba5 {[%emt 0:03:28]} b6 {[%emt 0:00:04]} 21. Bd2 {[%emt 0:02:57] Hoping for b4.} Ka7 {[%emt 0:00:34]} (21... Rc8 $142) 22. Kb1 {[%emt 0:02:01]} Rc8 {[%emt 0:01:24]} 23. Rhe1 {[%emt 0:11:25]} Rhe8 {[%emt 0:03:39]} 24. Bc3 {[%emt 0:10:33]} Re7 {[%emt 0:01:40]} 25. Bc4 {[%emt 0:03:00]} (25. Qb4 $16) 25... Bh4 $14 {[%emt 0:03:12]} 26. Rf1 {[%emt 0:01:55]} Ne4 {[%emt 0:03:14]} 27. Qxa6+ {[%emt 0:06:11]} Kb8 {[%emt 0:00:04]} 28. Bb3 {[%emt 0:04:34] Bb4 would now be deadly.} Nxc3+ {[%emt 0:00:09]} 29. bxc3 {[%emt 0:00:02]} Bf6 {[%emt 0:01:06]} 30. Rd5 {[%emt 0:01:47] Strongly threatening Rb5.} Qb7 {[%emt 0:09:21]} (30... Qc6 $1 $14) 31. Qxb7+ $18 {[%emt 0:00:31]} Rxb7 {[%emt 0:00:21]} 32. Rxd6 {[%emt 0:00:10]} Be7 {[%emt 0:00:12]} 33. Rxh6 {[%emt 0:00:04]} exf4 {[%emt 0:00:22]} 34. Bd5 {[%emt 0:00:36]} (34. Rxf4 Bg5 35. Rfh4 Bxh4 36. Rxh4 Rxc3 $11) (34. Bxf7 Bf8 35. Rh7 Rcc7 36. Rxf4 Rxf7 37. Rxf7 Rxf7 $15) 34... Rd7 {[%emt 0:01:15]} 35. Bxf7 {[%emt 0:04:44]} Rxc3 {[%emt 0:00:21]} 36. Rxb6+ {[%emt 0:01:54]} (36. Be6 $18 Rd8 37. f6 (37. Rxf4 Bg5 $11)) 36... Kc7 $16 {[%emt 0:00:07]} 37. Ra6 {[%emt 0:03:26][%cal Ob1b2]} Kb7 {[%emt 0:00:46]} 38. Ra4 {[%emt 0:03:01]} Rd2 {[%emt 0:00:25]} (38... Bf6 $16 {was called for.}) 39. Bb3 {[%emt 0:01:24]} (39. Rfxf4 Rcxc2 40. Bb3 Rb2+ 41. Kc1 Rxh2 $11) 39... f3 {[%emt 0:00:28]} 40. Rf4 {[%emt 0:04:04]} (40. Re4 $142 Ba3 41. Ra4) 40... Bf6 {[%emt 0:00:43]} (40... Ba3 $16) 41. Kc1 $18 {[%emt 0:01:12]} (41. R4xf3 $2 {perishes.} Rxf3 (41... Rxh2 $2 {too greedy.} 42. Rxc3 Bxc3 43. f6 $18) 42. Kc1 Rff2 (42... Rxf1+ $2 43. Kxd2 Rxf5 44. h3 $19) 43. Rxf2 Rxf2 $19) 41... Rdd3 {[%emt 0:00:35] [#]} (41... Rxh2 $142 42. R4xf3 Rxf3 43. Rxf3 Kc7) 42. R4xf3 $3 {[%emt 0:00:38][%mdl 512]} Rxf3 {[%emt 0:00:48]} 43. Bd5+ {[%emt 0:00:01]} Kc7 {[%emt 0:00:13]} 44. Rxf3 {[%emt 0:02:12][%mdl 4096] Endgame. KRB-KRB} Rc5 {[%emt 0:00:12]} 45. Be6 {[%emt 0:00:28]} Kd6 {[%emt 0:00:34]} 46. Rd3+ {[%emt 0:00:07]} Ke5 {[%emt 0:00:05]} 47. c4 {[%emt 0:01:28]} Ke4 {[%emt 0:00:14]} 48. Rd7 {[%emt 0:00:51]} Ra5 {[%emt 0:00:11]} 49. Kb1 {[%emt 0:00:06]} Bd4 $2 {[%emt 0:01:35] [#]} (49... Ke3 50. Rd5 Ra7) 50. Rxd4+ $1 {[%emt 0:03:19]} Kxd4 {[%emt 0:00:05] KR-KB} 51. f6 {[%emt 0:00:03][%cal Bf5f6,Bf6f7][%mdl 32]} Kc3 {[%emt 0:00:35]} 52. f7 {[%emt 0:01:18]} Re5 {[%emt 0:00:10]} 53. a4 {[%emt 0:01:21] Intending Ka2 and mate.} (53. f8=B $2 Re1#) 53... Re1+ {[%emt 0:00:35]} 54. Ka2 {[%emt 0:00:03]} Re2+ {[%emt 0:01:09]} 55. Ka3 {[%emt 0:00:04]} Re1 {[%emt 0:00:52]} 56. c5 {[%emt 0:00:05][%cal Bc4c5,Bc5c6,Bc6c7][%mdl 32]} (56. f8=B $2 Ra1#) 56... Ra1+ {[%emt 0:00:25]} 57. Ba2 {[%emt 0:00:04]} Rf1 {[%emt 0:00:10]} 58. c6 {[%emt 0:00:13]} Rf4 {[%emt 0:00:56]} 59. c7 {[%emt 0:00:10]} 1-0

[Event "EYCC O18-ch 2024"]
[Site "Prague"]
[Date "2024.08.28"]
[Round "6.18"]
[White "Pyrih, Roman"]
[Black "Ristic, Luka"]
[Result "0-1"]
[ECO "C41"]
[WhiteElo "2422"]
[BlackElo "2274"]
[Annotator "RC"]
[PlyCount "116"]
[EventDate "2024.08.19"]
[EventType "swiss"]
[EventCountry "CZE"]
[SourceTitle "playchess.com"]
[Source "ChessBase"]
[SourceQuality "1"]
[TimeControl "5400+30"]

1. e4 {[%emt 0:00:04]} d6 {[%emt 0:00:59]} 2. d4 {[%emt 0:00:07]} Nf6 {[%emt 0:00:13]} 3. Nc3 {[%emt 0:00:04]} e5 {[%emt 0:00:57]} 4. Nf3 {[%emt 0:01:24]} Nbd7 {[%emt 0:00:18]} 5. Rg1 {[%emt 0:00:02]} c6 {[%emt 0:01:31]} 6. g4 {[%emt 0:00:13]} h6 {[%emt 0:00:41]} 7. h4 {[%emt 0:00:09]} exd4 {[%emt 0:01:21]} 8. Nxd4 {[%emt 0:00:55]} Ne5 {[%emt 0:01:02]} 9. g5 {[%emt 0:00:41]} hxg5 {[%emt 0:00:29]} 10. hxg5 {[%emt 0:00:48]} Nfg4 {[%emt 0:00:27]} 11. Be2 {[%emt 0:04:07]} Qb6 {[%emt 0:06:41]} 12. f4 {[%emt 0:06:49]} Nh2 {[%emt 0:00:46]} 13. Rg3 {[%emt 0:00:02]} Nhg4 {[%emt 0:00:41]} 14. Rg1 {[%emt 0:00:32]} Nh2 {[%emt 0:00:04]} 15. fxe5 {[%emt 0:15:46]} dxe5 {[%emt 0:01:22]} 16. Be3 {[%emt 0:00:55]} Rh3 {[%emt 0:08:04]} 17. Qd2 {[%emt 0:01:19]} Rxe3 {[%emt 0:02:18]} 18. Qxe3 {[%emt 0:00:01]} exd4 {[%emt 0:00:09]} 19. Qg3 {[%emt 0:00:48]} Qxb2 {[%emt 0:12:43]} 20. Rb1 {[%emt 0:00:59]} Qxc2 {[%emt 0:02:31]} 21. Qxh2 {[%emt 0:06:52]} Qxc3+ 22. Kd1 d3 {[%emt 0:11:26]} 23. Bg4 {[%emt 0:01:24]} Bd6 {[%emt 0:01:55]} 24. Qd2 {[%emt 0:05:14]} Qd4 {[%emt 0:00:25]} 25. Rg2 {[%emt 0:00:01]} Qxe4 {[%emt 0:01:24]} 26. Qe1 {[%emt 0:00:01]} Bxg4+ {[%emt 0:01:53]} 27. Rxg4 {[%emt 0:00:01]} Qxe1+ {[%emt 0:00:03]} 28. Kxe1 {[%emt 0:00:01]} O-O-O {[%emt 0:00:14]} 29. Ra4 {[%emt 0:02:39]} a6 {[%emt 0:02:50]} 30. Rb3 {[%emt 0:01:48]} Be7 {[%emt 0:01:22]} 31. Rg4 {[%emt 0:00:02]} Rd5 {[%emt 0:01:50]} 32. g6 {[%emt 0:00:01]} fxg6 {[%emt 0:00:44]} 33. Rxg6 {[%emt 0:00:01]} d2+ {[%emt 0:01:11]} 34. Kd1 {[%emt 0:00:01]} Bf6 {[%emt 0:03:07]} 35. Rbg3 {[%emt 0:01:25]} Kc7 {[%emt 0:00:42]} 36. Rg2 {[%emt 0:00:01]} Bc3 {[%emt 0:00:11]} 37. R6g3 {[%emt 0:00:01]} Rc5 {[%emt 0:00:26]} 38. Rg5 {[%emt 0:01:19]} Rxg5 {[%emt 0:01:36]} 39. Rxg5 {[%emt 0:00:01]} b5 {[%emt 0:00:11]} 40. Kc2 {[%emt 0:00:21]} b4 {[%emt 0:00:39]} 41. Rf5 {[%emt 0:00:13]} Kb6 {[%emt 0:00:09]} 42. Rf8 {[%emt 0:00:04]} a5 {[%emt 0:00:20]} 43. Rb8+ {[%emt 0:01:19]} Kc5 {[%emt 0:00:09]} 44. Ra8 {[%emt 0:00:07]} Kb5 {[%emt 0:00:32]} 45. Rb8+ {[%emt 0:00:28]} Ka4 {[%emt 0:00:07]} 46. Rc8 {[%emt 0:00:15]} Ka3 {[%emt 0:00:58]} 47. Rxc6 {[%emt 0:00:06]} Kxa2 {[%emt 0:00:59]} 48. Rd6 {[%emt 0:00:06]} a4 {[%emt 0:00:27]} 49. Rd5 {[%emt 0:00:13]} a3 {[%emt 0:00:31]} 50. Rd8 {[%emt 0:00:16]} g5 {[%emt 0:00:31]} 51. Rd7 {[%emt 0:00:03]} g4 {[%emt 0:00:14]} 52. Rd3 {[%emt 0:00:01]} g3 {[%emt 0:00:44]} 53. Rxg3 {[%emt 0:00:02]} b3+ {[%emt 0:00:37]} 54. Kd1 {[%emt 0:00:01]} b2 {[%emt 0:00:10]} 55. Rxc3 {[%emt 0:00:01]} b1=Q+ {[%emt 0:00:06]} 56. Kxd2 {[%emt 0:00:01]} Qb2+ {[%emt 0:00:13]} 57. Kd3 {[%emt 0:00:05]} Qxc3+ {[%emt 0:00:06]} 58. Kxc3 {[%emt 0:00:01]} Kb1 {[%emt 0:00:01]} 0-1

[Event "EYCC O18-ch 2024"]
[Site "Prague"]
[Date "2024.08.29"]
[Round "7.1"]
[White "Stalmach, Richard"]
[Black "Sahakyan, Aleks"]
[Result "0-1"]
[ECO "A40"]
[WhiteElo "2443"]
[BlackElo "2287"]
[Annotator "RC"]
[PlyCount "74"]
[EventDate "2024.08.19"]
[EventType "swiss"]
[EventCountry "CZE"]
[SourceTitle "playchess.com"]
[Source "ChessBase"]
[SourceQuality "1"]
[TimeControl "5400+30"]

1. d4 {[%emt 0:00:05]} Nf6 {[%emt 0:00:06]} 2. c4 {[%emt 0:00:03]} e6 {[%emt 0:00:06]} 3. g3 {[%emt 0:00:06]} Bb4+ {[%emt 0:00:05]} 4. Nd2 {[%emt 0:01:00]} c5 {[%emt 0:00:05]} 5. a3 {[%emt 0:04:24]} Bxd2+ {[%emt 0:00:08]} 6. Qxd2 {[%emt 0:01:08]} cxd4 {[%emt 0:00:04]} 7. Nf3 {[%emt 0:01:38]} Nc6 {[%emt 0:00:04]} 8. Bg2 {[%emt 0:22:08]} e5 {[%emt 0:04:40]} 9. b4 {[%emt 0:03:08]} d6 {[%emt 0:09:04]} 10. Bb2 {[%emt 0:00:36]} O-O {[%emt 0:03:17]} 11. O-O {[%emt 0:01:05]} Qb6 {[%emt 0:11:16]} 12. Rac1 {[%emt 0:09:20]} a5 {[%emt 0:07:04]} 13. b5 {[%emt 0:01:21]} Ne7 {[%emt 0:01:41]} 14. e3 {[%emt 0:00:23]} dxe3 {[%emt 0:03:30]} 15. Qxe3 {[%emt 0:00:44]} Qxe3 {[%emt 0:03:36]} 16. fxe3 {[%emt 0:00:04]} Nf5 {[%emt 0:14:41]} 17. Rfd1 {[%emt 0:05:43]} Be6 {[%emt 0:07:12]} 18. Ng5 {[%emt 0:05:08]} Nxe3 {[%emt 0:02:21]} 19. Rxd6 {[%emt 0:02:41]} Bxc4 {[%emt 0:01:04]} 20. b6 {[%emt 0:03:50]} Ba6 {[%emt 0:02:07]} 21. Bxe5 {[%emt 0:08:32]} Nxg2 {[%emt 0:00:52]} 22. Kxg2 {[%emt 0:00:40]} Ng4 {[%emt 0:01:28]} 23. Bd4 {[%emt 0:07:14]} Rae8 {[%emt 0:01:24]} 24. h3 {[%emt 0:05:12]} Re2+ {[%emt 0:03:07]} 25. Kg1 {[%emt 0:00:23]} Ne3 {[%emt 0:00:15]} 26. g4 {[%emt 0:05:35]} h6 {[%emt 0:03:38]} 27. Nf3 {[%emt 0:01:02]} Rg2+ {[%emt 0:02:09]} 28. Kh1 {[%emt 0:00:03]} Rg3 {[%emt 0:00:06]} 29. Ne5 {[%emt 0:02:10]} f6 {[%emt 0:06:18]} 30. Ng6 {[%emt 0:04:40]} Re8 {[%emt 0:00:42]} 31. Kh2 {[%emt 0:04:25]} Rg2+ {[%emt 0:00:51]} 32. Kh1 {[%emt 0:00:01]} Rd2 {[%emt 0:01:10]} 33. Rc7 {[%emt 0:00:00]} Bd3 {[%emt 0:04:51]} 34. Nf4 {[%emt 0:00:05]} Nf5 {[%emt 0:01:36]} 35. Re6 {[%emt 0:02:48]} Rxe6 {[%emt 0:00:16]} 36. Nxe6 {[%emt 0:00:21]} Be4+ {[%emt 0:00:06]} 37. Kg1 {[%emt 0:00:02]} Nxd4 {[%emt 0:00:15]} 0-1

[Event "EYCC O18-ch 2024"]
[Site "Prague"]
[Date "2024.08.29"]
[Round "7.1"]
[White "Vergara Anton, Diego"]
[Black "Stevik, Patrik"]
[Result "1/2-1/2"]
[ECO "D34"]
[WhiteElo "2416"]
[BlackElo "2244"]
[Annotator "RC"]
[PlyCount "58"]
[EventDate "2024.08.19"]
[EventType "swiss"]
[EventCountry "CZE"]
[SourceTitle "playchess.com"]
[Source "ChessBase"]
[SourceQuality "1"]
[TimeControl "5400+30"]

1. d4 {[%emt 0:00:04]} d5 {[%emt 0:00:03]} 2. Nf3 {[%emt 0:00:07]} c5 {[%emt 0:00:02]} 3. c4 {[%emt 0:00:14]} e6 {[%emt 0:00:01]} 4. cxd5 {[%emt 0:00:08]} exd5 {[%emt 0:00:01]} 5. Nc3 {[%emt 0:00:10]} Nf6 {[%emt 0:00:01]} 6. g3 {[%emt 0:00:11]} Nc6 {[%emt 0:00:02]} 7. Bg2 {[%emt 0:00:09]} Be7 {[%emt 0:00:01]} 8. O-O {[%emt 0:00:12]} O-O {[%emt 0:00:02]} 9. dxc5 {[%emt 0:00:10]} Bxc5 {[%emt 0:00:02]} 10. a3 {[%emt 0:00:10]} a5 {[%emt 0:03:21]} 11. Bf4 {[%emt 0:02:02]} Be6 {[%emt 0:03:56]} 12. Rc1 {[%emt 0:00:26]} Rc8 {[%emt 0:05:55]} 13. Ne5 {[%emt 0:07:48]} Re8 {[%emt 0:09:40]} 14. Nxc6 {[%emt 0:04:53]} bxc6 {[%emt 0:00:52]} 15. h3 {[%emt 0:11:19]} Ba7 {[%emt 0:10:40]} 16. e3 {[%emt 0:05:10]} Qd7 {[%emt 0:09:48]} 17. g4 {[%emt 0:02:18]} Qb7 {[%emt 0:02:51]} 18. Rc2 {[%emt 0:04:37]} d4 {[%emt 0:04:16]} 19. g5 {[%emt 0:02:45]} dxc3 {[%emt 0:06:34]} 20. gxf6 {[%emt 0:00:23]} cxb2 {[%emt 0:01:19]} 21. Qb1 {[%emt 0:02:51]} Qb5 {[%emt 0:05:01]} 22. Rxb2 {[%emt 0:05:25]} Qh5 {[%emt 0:01:24]} 23. Kh2 {[%emt 0:01:10]} g5 {[%emt 0:05:45]} 24. Bg3 {[%emt 0:08:34]} Bxh3 {[%emt 0:03:20]} 25. Bxh3 {[%emt 0:01:08]} g4 {[%emt 0:00:05]} 26. Rh1 {[%emt 0:08:44]} Rxe3 {[%emt 0:02:59]} 27. Kg2 {[%emt 0:06:20]} Qd5+ {[%emt 0:00:12]} 28. Kh2 {[%emt 0:00:12]} Qh5 {[%emt 0:00:22]} 29. Kg2 {[%emt 0:00:31]} Qd5+ {[%emt 0:03:49]} 1/2-1/2

[Event "EYCC O18-ch 2024"]
[Site "Prague"]
[Date "2024.08.29"]
[Round "7.2"]
[White "Pidluznij, Gleb"]
[Black "Shamatava, Nikolozi"]
[Result "0-1"]
[ECO "B10"]
[WhiteElo "2414"]
[BlackElo "2196"]
[Annotator "RC"]
[PlyCount "78"]
[EventDate "2024.08.19"]
[EventType "swiss"]
[EventCountry "CZE"]
[SourceTitle "playchess.com"]
[Source "ChessBase"]
[SourceQuality "1"]
[TimeControl "5400+30"]

1. e4 {[%emt 0:00:03]} c6 {[%emt 0:00:06]} 2. Nf3 {[%emt 0:00:11]} d5 {[%emt 0:00:10]} 3. d3 {[%emt 0:00:06]} Qc7 {[%emt 0:05:44]} 4. exd5 {[%emt 0:00:07]} cxd5 {[%emt 0:00:04]} 5. c4 {[%emt 0:00:05]} Nf6 {[%emt 0:06:37]} 6. Nc3 {[%emt 0:00:20]} e6 {[%emt 0:05:12]} 7. a3 {[%emt 0:00:06]} Bd7 {[%emt 0:03:26]} 8. g3 {[%emt 0:02:00]} Be7 {[%emt 0:02:35]} 9. Bg2 {[%emt 0:01:36]} O-O {[%emt 0:03:42]} 10. Bf4 {[%emt 0:06:49]} Qb6 {[%emt 0:01:08]} 11. b4 {[%emt 0:01:14]} Nc6 {[%emt 0:17:25]} 12. c5 {[%emt 0:00:58]} Qd8 {[%emt 0:00:56]} 13. d4 {[%emt 0:01:58]} Ne4 {[%emt 0:00:25]} 14. Ne2 {[%emt 0:15:15]} f5 {[%emt 0:04:25]} 15. h4 {[%emt 0:00:24]} Be8 {[%emt 0:01:39]} 16. Ne5 {[%emt 0:03:04]} a5 {[%emt 0:03:38]} 17. f3 {[%emt 0:17:56]} Nf6 {[%emt 0:00:32]} 18. O-O {[%emt 0:03:16]} Nh5 {[%emt 0:01:54]} 19. Nxc6 {[%emt 0:01:45]} Bxc6 {[%emt 0:00:13]} 20. Be5 {[%emt 0:00:52]} Bb5 {[%emt 0:01:08]} 21. Re1 {[%emt 0:07:26]} axb4 {[%emt 0:08:38]} 22. axb4 {[%emt 0:00:15]} Rxa1 {[%emt 0:00:14]} 23. Qxa1 {[%emt 0:00:02]} Bxe2 {[%emt 0:00:57]} 24. Rxe2 {[%emt 0:00:02]} f4 {[%emt 0:00:06]} 25. g4 {[%emt 0:05:35]} Ng3 {[%emt 0:00:25]} 26. Rc2 {[%emt 0:07:06]} Bxh4 {[%emt 0:01:26]} 27. b5 {[%emt 0:00:24]} h5 {[%emt 0:12:32]} 28. Bh3 {[%emt 0:00:58]} Bf6 {[%emt 0:00:41]} 29. Bxf4 {[%emt 0:04:24]} h4 {[%emt 0:00:08]} 30. Kg2 {[%emt 0:05:49]} Bg5 {[%emt 0:01:07]} 31. Be5 {[%emt 0:02:43]} Bf4 {[%emt 0:04:54]} 32. Bxf4 {[%emt 0:02:07]} Rxf4 {[%emt 0:00:04]} 33. c6 {[%emt 0:00:49]} bxc6 {[%emt 0:00:18]} 34. bxc6 {[%emt 0:00:27]} Rf7 {[%emt 0:02:09]} 35. Qc3 {[%emt 0:01:35]} Qc7 {[%emt 0:00:23]} 36. Kg1 {[%emt 0:05:59]} g6 {[%emt 0:03:48]} 37. Qe3 {[%emt 0:00:54]} Qa7 {[%emt 0:02:11]} 38. Kg2 {[%emt 0:02:44]} Qa4 {[%emt 0:02:56]} 39. Rf2 {[%emt 0:00:49]} Qd1 {[%emt 0:00:58]} 0-1

[Event "EYCC O18-ch 2024"]
[Site "Prague"]
[Date "2024.08.29"]
[Round "7.2"]
[White "Pasztor, Balazs"]
[Black "Koutlas, Nikolaos"]
[Result "1-0"]
[ECO "B90"]
[WhiteElo "2402"]
[BlackElo "2322"]
[Annotator "RC"]
[PlyCount "121"]
[EventDate "2024.08.19"]
[EventType "swiss"]
[EventCountry "CZE"]
[SourceTitle "playchess.com"]
[Source "ChessBase"]
[SourceQuality "1"]
[TimeControl "5400+30"]

1. e4 {[%emt 0:00:04]} c5 {[%emt 0:00:05]} 2. Nf3 {[%emt 0:00:06]} d6 {[%emt 0:00:03]} 3. d4 {[%emt 0:00:07]} cxd4 {[%emt 0:00:04]} 4. Nxd4 {[%emt 0:00:05]} Nf6 {[%emt 0:00:04]} 5. Nc3 {[%emt 0:00:08]} a6 {[%emt 0:00:02]} 6. h3 {[%emt 0:00:10]} e5 {[%emt 0:00:10]} 7. Nf3 {[%emt 0:00:32]} h6 {[%emt 0:00:30]} 8. Nh2 {[%emt 0:02:40]} Be6 {[%emt 0:03:31]} 9. Ng4 {[%emt 0:00:56]} Nbd7 {[%emt 0:00:13]} 10. Ne3 {[%emt 0:04:13]} Nc5 {[%emt 0:19:57]} 11. Bd3 {[%emt 0:03:32]} Be7 {[%emt 0:02:15]} 12. O-O {[%emt 0:02:07]} O-O {[%emt 0:00:17]} 13. a4 {[%emt 0:08:16]} b5 {[%emt 0:04:31]} 14. b4 {[%emt 0:17:55]} Nxd3 {[%emt 0:14:41]} 15. Qxd3 {[%emt 0:04:05]} a5 {[%emt 0:00:41]} 16. bxa5 {[%emt 0:09:52]} b4 {[%emt 0:08:13]} 17. Ncd5 {[%emt 0:01:06]} Nxd5 {[%emt 0:02:11]} 18. exd5 {[%emt 0:01:38]} Bc8 {[%emt 0:02:49]} 19. Qb3 {[%emt 0:01:19]} Bg5 {[%emt 0:01:49]} 20. Qxb4 {[%emt 0:03:11]} Bxe3 {[%emt 0:00:55]} 21. Bxe3 {[%emt 0:00:23]} Bf5 {[%emt 0:11:10]} 22. c4 {[%emt 0:04:09]} Qf6 {[%emt 0:01:03]} 23. Ra3 {[%emt 0:02:55]} Qg6 {[%emt 0:02:49]} 24. Bb6 {[%emt 0:00:49]} Bd3 {[%emt 0:00:32]} 25. Rc1 {[%emt 0:02:24]} Rfc8 {[%emt 0:01:21]} 26. Rac3 {[%emt 0:01:21]} e4 {[%emt 0:03:58]} 27. Qa3 {[%emt 0:03:29]} f5 {[%emt 0:03:37]} 28. c5 {[%emt 0:03:12]} f4 {[%emt 0:01:25]} 29. cxd6 {[%emt 0:00:48]} Rxc3 {[%emt 0:02:45]} 30. Qxc3 {[%emt 0:01:57]} Qxd6 {[%emt 0:03:03]} 31. Qc6 {[%emt 0:01:49]} Qxc6 {[%emt 0:00:04]} 32. Rxc6 {[%emt 0:00:20]} e3 {[%emt 0:01:21]} 33. fxe3 {[%emt 0:00:37]} fxe3 {[%emt 0:00:04]} 34. d6 {[%emt 0:10:30]} e2 {[%emt 0:00:43]} 35. Rc1 {[%emt 0:00:18]} Bf5 {[%emt 0:06:54]} 36. Re1 {[%emt 0:00:11]} Re8 {[%emt 0:00:17]} 37. a6 {[%emt 0:00:19]} Bd7 {[%emt 0:00:41]} 38. a7 {[%emt 0:01:13]} Bc6 {[%emt 0:00:19]} 39. a5 {[%emt 0:01:11]} Kf7 {[%emt 0:00:55]} 40. Kf2 {[%emt 0:01:16]} g6 {[%emt 0:02:01]} 41. g3 {[%emt 0:01:11]} Bb5 {[%emt 0:01:46]} 42. Bc7 {[%emt 0:00:15]} Kf6 {[%emt 0:00:44]} 43. Bb8 {[%emt 0:01:08]} Bc6 {[%emt 0:00:05]} 44. Rxe2 {[%emt 0:01:20]} Rxe2+ {[%emt 0:00:04]} 45. Kxe2 {[%emt 0:00:06]} Ke6 {[%emt 0:00:04]} 46. Ke3 {[%emt 0:00:52]} Ba8 {[%emt 0:01:17]} 47. Kd4 {[%emt 0:00:08]} Bg2 {[%emt 0:00:13]} 48. Bc7 {[%emt 0:00:16]} Ba8 {[%emt 0:00:10]} 49. a6 {[%emt 0:00:17]} Bg2 {[%emt 0:00:15]} 50. Kc5 {[%emt 0:00:18]} Kd7 {[%emt 0:00:11]} 51. Ba5 {[%emt 0:00:33]} Ba8 {[%emt 0:00:37]} 52. g4 {[%emt 0:01:12]} h5 {[%emt 0:00:21]} 53. gxh5 {[%emt 0:00:34]} gxh5 {[%emt 0:00:04]} 54. h4 {[%emt 0:00:14]} Ke6 {[%emt 0:00:06]} 55. Bb4 {[%emt 0:00:07]} Bh1 {[%emt 0:00:39]} 56. Kd4 {[%emt 0:00:14]} Bc6 {[%emt 0:00:05]} 57. Ke3 {[%emt 0:00:07]} Kd7 {[%emt 0:01:28]} 58. Kf4 {[%emt 0:00:06]} Ke6 {[%emt 0:00:07]} 59. Kg5 {[%emt 0:00:06]} Bf3 {[%emt 0:00:03]} 60. Bc5 {[%emt 0:00:25]} Kd7 {[%emt 0:00:05]} 61. a8=Q {[%emt 0:01:10]} 1-0